[Event "20. Dolomitenbank Open-A 2019"]
[Site "Lienz"]
[Date "2019.02.16"]
[Round "9.8"]
[White "Hacker, Jonas"]
[Black "Goh, Wei Ming Kevin"]
[Result "0-1"]
[ECO "C18"]
[WhiteElo "2369"]
[BlackElo "2477"]
[Annotator "RC"]
[PlyCount "138"]
[EventDate "2019.02.09"]
[EventType "swiss"]
[EventCountry "AUT"]
[SourceTitle "playchess.com"]
[Source "ChessBase"]
[SourceQuality "1"]
[TimeControl "40/5400+30:1800+30"]

1. e4 {[%emt 0:00:00]} e6 {[%emt 0:06:04]} 2. d4 {[%emt 0:00:00]} d5 {[%emt 0:00:03]} 3. Nc3 {[%emt 0:00:00]} Bb4 {[%emt 0:00:04]} 4. e5 {[%emt 0:00:00]} c5 {[%emt 0:00:03]} 5. a3 {[%emt 0:00:00]} Bxc3+ {[%emt 0:00:04]} 6. bxc3 {[%emt 0:00:03]} Ne7 {[%emt 0:00:03]} 7. Qg4 {[%emt 0:00:08]} Kf8 {[%emt 0:00:04]} 8. Nf3 {[%emt 0:09:54]} Qa5 {[%emt 0:01:32]} 9. Bd2 {[%emt 0:02:18]} Qa4 {[%emt 0:01:50]} 10. Bd3 {[%emt 0:06:07]} c4 {[%emt 0:02:33]} 11. Be2 {[%emt 0:00:13]} Qxc2 {[%emt 0:02:33]} 12. O-O {[%emt 0:06:38]} Nbc6 {[%emt 0:01:31]} 13. Rac1 {[%emt 0:05:46]} Qa4 {[%emt 0:10:05]} 14. Qh5 {[%emt 0:11:27]} h6 {[%emt 0:06:08]} 15. Bd1 {[%emt 0:07:13]} Qxa3 {[%emt 0:03:02]} 16. Bc2 {[%emt 0:00:42]} Qa5 {[%emt 0:15:43]} 17. Ng5 {[%emt 0:03:28]} g6 {[%emt 0:03:41]} 18. Qh4 {[%emt 0:05:17]} Qd8 {[%emt 0:09:36]} 19. Nh3 {[%emt 0:04:10]} Nf5 {[%emt 0:03:40]} 20. Qg4 {[%emt 0:02:19]} b5 {[%emt 0:04:54]} 21. Qf3 {[%emt 0:01:59]} a5 {[%emt 0:03:05]} 22. Nf4 {[%emt 0:02:59]} Ke7 {[%emt 0:03:41]} 23. Nxd5+ {[%emt 0:11:13]} exd5 {[%emt 0:00:56]} 24. g4 {[%emt 0:00:00]} Rg8 {[%emt 0:01:14]} 25. Kh1 {[%emt 0:01:04]} Ncxd4 {[%emt 0:04:03]} 26. cxd4 {[%emt 0:01:33]} Nxd4 {[%emt 0:00:01]} 27. Qe3 {[%emt 0:02:40]} Ne6 {[%emt 0:04:40]} 28. Qa3+ {[%emt 0:02:45]} Ke8 {[%emt 0:00:29]} 29. Ra1 {[%emt 0:01:09]} Qe7 {[%emt 0:04:19]} 30. Qb2 {[%emt 0:00:22]} Qb7 {[%emt 0:02:04]} 31. f3 {[%emt 0:01:21]} b4 {[%emt 0:00:27]} 32. Bxh6 {[%emt 0:01:08]} b3 {[%emt 0:00:53]} 33. Bb1 {[%emt 0:00:37]} g5 {[%emt 0:01:47]} 34. Bf5 {[%emt 0:01:10]} a4 {[%emt 0:01:30]} 35. h4 {[%emt 0:02:06]} Rh8 {[%emt 0:03:32]} 36. Bxg5 {[%emt 0:03:46]} Nxg5 {[%emt 0:00:12]} 37. e6 {[%emt 0:00:00]} Rxh4+ {[%emt 0:00:43]} 38. Kg2 {[%emt 0:00:01]} Bxe6 {[%emt 0:01:16]} 39. Qg7 {[%emt 0:00:27]} Bxf5 {[%emt 0:00:50]} 40. Qxg5 {[%emt 0:01:19]} Qe7 {[%emt 0:00:32]} 41. Qxf5 {[%emt 0:13:41]} Qe2+ {[%emt 0:01:09]} 42. Rf2 {[%emt 0:00:01]} Rh2+ {[%emt 0:00:09]} 43. Kxh2 {[%emt 0:00:06]} Qxf2+ {[%emt 0:00:04]} 44. Kh3 {[%emt 0:00:07]} Qd4 {[%emt 0:01:00]} 45. Re1+ {[%emt 0:03:45]} Kf8 {[%emt 0:00:14]} 46. Re5 {[%emt 0:01:44]} b2 {[%emt 0:12:47]} 47. Qf6 {[%emt 0:02:30]} Qxe5 {[%emt 0:00:09]} 48. Qxe5 {[%emt 0:00:13]} b1=Q {[%emt 0:00:10]} 49. Qh8+ {[%emt 0:00:53]} Ke7 {[%emt 0:00:02]} 50. Qe5+ {[%emt 0:00:30]} Kd7 {[%emt 0:00:17]} 51. Qxd5+ {[%emt 0:00:10]} Kc7 {[%emt 0:00:03]} 52. Qc5+ {[%emt 0:02:15]} Kb7 {[%emt 0:04:48]} 53. Qd5+ {[%emt 0:00:11]} Ka7 {[%emt 0:01:18]} 54. Qa5+ {[%emt 0:00:55]} Kb7 {[%emt 0:00:06]} 55. Qd5+ {[%emt 0:00:05]} Kb6 {[%emt 0:00:18]} 56. Qxa8 {[%emt 0:06:54]} Qb3 {[%emt 0:00:43]} 57. Qd8+ {[%emt 0:03:36]} Kb5 {[%emt 0:00:19]} 58. Qd7+ {[%emt 0:01:07]} Kb4 {[%emt 0:00:15]} 59. Qxf7 {[%emt 0:04:59]} a3 {[%emt 0:00:29]} 60. Qe7+ {[%emt 0:01:04]} Kc3 {[%emt 0:00:08]} 61. Qe3+ {[%emt 0:01:32]} Kc2 {[%emt 0:00:11]} 62. Qe2+ {[%emt 0:00:14]} Kc1 {[%emt 0:00:25]} 63. Qe1+ {[%emt 0:00:38]} Kb2 {[%emt 0:00:09]} 64. Qd2+ {[%emt 0:00:19]} Qc2 {[%emt 0:03:02]} 65. Qb4+ {[%emt 0:00:11]} Ka2 {[%emt 0:00:14]} 66. Kg3 {[%emt 0:01:20]} c3 {[%emt 0:00:45]} 67. g5 {[%emt 0:00:09]} Qd3 {[%emt 0:00:52]} 68. Qb6 {[%emt 0:00:56]} c2 {[%emt 0:00:19]} 69. Qe6+ {[%emt 0:00:06]} Kb2 {[%emt 0:01:50]} 0-1